[Event "*** Titled Tuesday Blitz"]
[Site "Chess.com"]
[Date "2020.03.03"]
[Round "5"]
[White "Vugar_Manafov"]
[Black "TBergh98"]
[Result "1-0"]
[WhiteElo "2586"]
[BlackElo "2320"]
[TimeControl "180+1"]
[EndTime "9:51:38 PST"]
[Termination "Vugar_Manafov won by checkmate"]

1. d4 {[%clk 0:03:00.9]} 1... d6 {[%clk 0:03:00.1]} 2. c4 {[%clk 0:02:56.7]}
2... e5 {[%clk 0:03:00.2]} 3. Nf3 {[%clk 0:02:56.3]} 3... e4 {[%clk 0:02:59]} 4.
Nfd2 {[%clk 0:02:56.1]} 4... f5 {[%clk 0:02:58.8]} 5. e3 {[%clk 0:02:56.5]} 5...
Nf6 {[%clk 0:02:58.6]} 6. Nc3 {[%clk 0:02:56.6]} 6... g6 {[%clk 0:02:57.1]} 7.
b4 {[%clk 0:02:56.9]} 7... Bg7 {[%clk 0:02:57.3]} 8. Be2 {[%clk 0:02:57]} 8...
O-O {[%clk 0:02:56.8]} 9. a4 {[%clk 0:02:56.9]} 9... c6 {[%clk 0:02:56.9]} 10.
Nb3 {[%clk 0:02:55.3]} 10... Na6 {[%clk 0:02:54.2]} 11. Ba3 {[%clk 0:02:55]}
11... Nc7 {[%clk 0:02:47.3]} 12. b5 {[%clk 0:02:48.9]} 12... Re8 {[%clk
0:02:45.4]} 13. a5 {[%clk 0:02:46.9]} 13... a6 {[%clk 0:02:43.2]} 14. O-O {[%clk
0:02:40.4]} 14... d5 {[%clk 0:02:38]} 15. bxc6 {[%clk 0:02:33.6]} 15... bxc6
{[%clk 0:02:37.4]} 16. cxd5 {[%clk 0:02:33.5]} 16... Ncxd5 {[%clk 0:02:34.4]}
17. Rc1 {[%clk 0:02:31.2]} 17... Be6 {[%clk 0:02:31.2]} 18. Nc5 {[%clk
0:02:29.7]} 18... Nxc3 {[%clk 0:02:26.3]} 19. Rxc3 {[%clk 0:02:30.6]} 19... Bd5
{[%clk 0:02:26]} 20. Qa4 {[%clk 0:02:26.4]} 20... Nd7 {[%clk 0:02:14.6]} 21.
Nxa6 {[%clk 0:02:21.6]} 21... Kh8 {[%clk 0:01:27.9]} 22. Rb1 {[%clk 0:02:14.9]}
22... Qh4 {[%clk 0:01:07.5]} 23. Nc7 {[%clk 0:02:06]} 23... Reb8 {[%clk
0:01:05.8]} 24. Nxa8 {[%clk 0:01:50.7]} 24... Rxb1+ {[%clk 0:01:03.4]} 25. Rc1
{[%clk 0:01:51.2]} 25... Rxc1+ {[%clk 0:01:00.2]} 26. Bxc1 {[%clk 0:01:52.1]}
26... Qd8 {[%clk 0:00:49.6]} 27. Nb6 {[%clk 0:01:47.6]} 27... Nxb6 {[%clk
0:00:47.6]} 28. axb6 {[%clk 0:01:48.5]} 28... h5 {[%clk 0:00:28]} 29. b7 {[%clk
0:01:37.4]} 29... c5 {[%clk 0:00:23]} 30. Ba6 {[%clk 0:01:32.3]} 30... cxd4
{[%clk 0:00:20.6]} 31. exd4 {[%clk 0:01:33.1]} 31... Bxb7 {[%clk 0:00:18.2]} 32.
Bxb7 {[%clk 0:01:32]} 32... Qc7 {[%clk 0:00:18.7]} 33. Bc6 {[%clk 0:01:26.8]}
33... Qb6 {[%clk 0:00:16.1]} 34. Bd5 {[%clk 0:00:45]} 34... Bxd4 {[%clk
0:00:07.6]} 35. Qe8+ {[%clk 0:00:43.3]} 35... Kg7 {[%clk 0:00:08.2]} 36. Qf7+
{[%clk 0:00:42.5]} 36... Kh8 {[%clk 0:00:07.6]} 37. Qg8# {[%clk 0:00:42.9]} 1-0

[Event "*** Titled Tuesday Blitz"]
[Site "Chess.com"]
[Date "2020.03.03"]
[Round "5"]
[White "Resignify"]
[Black "SlavenPastar"]
[Result "0-1"]
[WhiteElo "2257"]
[BlackElo "2482"]
[TimeControl "180+1"]
[EndTime "9:51:46 PST"]
[Termination "SlavenPastar won on time"]

1. e4 {[%clk 0:03:00.9]} 1... b6 {[%clk 0:02:59.5]} 2. Nc3 {[%clk 0:02:59.6]}
2... Bb7 {[%clk 0:03:00]} 3. d3 {[%clk 0:02:58.4]} 3... e6 {[%clk 0:03:00.6]} 4.
g3 {[%clk 0:02:58.3]} 4... Nf6 {[%clk 0:02:59.6]} 5. Bg2 {[%clk 0:02:58.2]} 5...
d5 {[%clk 0:03:00.1]} 6. Bg5 {[%clk 0:02:50.3]} 6... Be7 {[%clk 0:02:52.8]} 7.
e5 {[%clk 0:02:38.1]} 7... Nfd7 {[%clk 0:02:52.3]} 8. Bxe7 {[%clk 0:02:36.9]}
8... Qxe7 {[%clk 0:02:53.2]} 9. d4 {[%clk 0:02:26.3]} 9... c5 {[%clk 0:02:52.8]}
10. Nb5 {[%clk 0:02:23.3]} 10... O-O {[%clk 0:02:52.2]} 11. Nc7 {[%clk
0:02:18.9]} 11... cxd4 {[%clk 0:02:50.4]} 12. Nxa8 {[%clk 0:02:11.8]} 12... Qb4+
{[%clk 0:02:45.8]} 13. Kf1 {[%clk 0:02:02.3]} 13... Bxa8 {[%clk 0:02:35.2]} 14.
Ne2 {[%clk 0:01:48.2]} 14... Nc6 {[%clk 0:02:34.7]} 15. c3 {[%clk 0:01:31]}
15... dxc3 {[%clk 0:02:32.6]} 16. bxc3 {[%clk 0:01:28.8]} 16... Qc5 {[%clk
0:02:19.2]} 17. f4 {[%clk 0:00:53.2]} 17... Na5 {[%clk 0:02:13.5]} 18. Qd4
{[%clk 0:00:51]} 18... Qc7 {[%clk 0:02:11.8]} 19. Kf2 {[%clk 0:00:43.7]} 19...
Nc4 {[%clk 0:02:10.9]} 20. Rhc1 {[%clk 0:00:30.4]} 20... Nb8 {[%clk 0:02:10.1]}
21. Qd3 {[%clk 0:00:21.5]} 21... a5 {[%clk 0:02:02.7]} 22. Nd4 {[%clk
0:00:20.5]} 22... Bb7 {[%clk 0:01:59.8]} 23. Bf1 {[%clk 0:00:19.5]} 23... Ba6
{[%clk 0:01:59.3]} 24. Qf3 {[%clk 0:00:15.2]} 24... Qc5 {[%clk 0:01:56.2]} 25.
Kg2 {[%clk 0:00:12.6]} 25... Nc6 {[%clk 0:01:56.2]} 26. Nxc6 {[%clk 0:00:12]}
26... Qxc6 {[%clk 0:01:55.5]} 27. Rab1 {[%clk 0:00:09.8]} 27... Qc5 {[%clk
0:01:54.2]} 28. Qf2 {[%clk 0:00:08.3]} 28... Ne3+ {[%clk 0:01:52.6]} 29. Kf3
{[%clk 0:00:06.9]} 29... Bxf1 {[%clk 0:01:51.6]} 30. Rxf1 {[%clk 0:00:05.7]}
30... Nxf1 {[%clk 0:01:49.1]} 31. Qxc5 {[%clk 0:00:05.1]} 31... bxc5 {[%clk
0:01:50]} 32. Rxf1 {[%clk 0:00:04.1]} 32... Rb8 {[%clk 0:01:48.7]} 33. Rf2
{[%clk 0:00:03.9]} 33... Kf8 {[%clk 0:01:48.4]} 34. Ke3 {[%clk 0:00:03.5]} 34...
a4 {[%clk 0:01:48]} 35. Kd3 {[%clk 0:00:02.6]} 35... a3 {[%clk 0:01:48.5]} 36.
Rc2 {[%clk 0:00:01.3]} 36... Ke7 {[%clk 0:01:46.5]} 37. Kd2 {[%clk 0:00:01.1]}
37... Kd7 {[%clk 0:01:46.5]} 38. Kc1 {[%clk 0:00:02]} 38... Kc6 {[%clk
0:01:46.5]} 39. Kd2 {[%clk 0:00:02.9]} 39... Kb5 {[%clk 0:01:42]} 40. h3 {[%clk
0:00:03.8]} 40... Kc4 {[%clk 0:01:41.6]} 41. Ke3 {[%clk 0:00:03.3]} 41... Rb2
{[%clk 0:01:40.3]} 42. Kd2 {[%clk 0:00:03.5]} 42... Rxc2+ {[%clk 0:01:40.3]} 43.
Kxc2 {[%clk 0:00:04.4]} 43... d4 {[%clk 0:01:39.7]} 44. cxd4 {[%clk 0:00:05.3]}
44... cxd4 {[%clk 0:01:40]} 45. Kd2 {[%clk 0:00:05.4]} 45... d3 {[%clk
0:01:39.7]} 46. g4 {[%clk 0:00:04.7]} 46... Kd4 {[%clk 0:01:40]} 47. f5 {[%clk
0:00:03.2]} 47... Kc4 {[%clk 0:01:36.9]} 48. fxe6 {[%clk 0:00:01.8]} 48... fxe6
{[%clk 0:01:36.7]} 49. h4 {[%clk 0:00:02.3]} 49... Kd4 {[%clk 0:01:36.5]} 50. h5
{[%clk 0:00:02.2]} 50... h6 {[%clk 0:01:36.3]} 51. Kd1 {[%clk 0:00:01.9]} 51...
Kc3 {[%clk 0:01:36.8]} 52. Kc1 {[%clk 0:00:01.9]} 52... Kc4 {[%clk 0:01:27.8]}
53. Kd2 {[%clk 0:00:02.8]} 53... Kd4 {[%clk 0:01:28.2]} 54. Kd1 {[%clk
0:00:02.3]} 54... Kxe5 {[%clk 0:01:28.8]} 55. Kd2 {[%clk 0:00:03.2]} 55... Kd4
{[%clk 0:01:29.2]} 56. Kd1 {[%clk 0:00:03.2]} 56... e5 {[%clk 0:01:29.8]} 57.
Kd2 {[%clk 0:00:03.9]} 57... e4 {[%clk 0:01:30.5]} 58. Kd1 {[%clk 0:00:04.8]}
58... e3 {[%clk 0:01:31]} 59. Ke1 {[%clk 0:00:04.9]} 59... Kc3 {[%clk
0:01:31.5]} 60. Kd1 {[%clk 0:00:05]} 60... Kb2 {[%clk 0:01:30.2]} 61. Ke1 {[%clk
0:00:03]} 61... Kxa2 {[%clk 0:01:31.1]} 62. Kd1 {[%clk 0:00:03.1]} 62... Kb3
{[%clk 0:01:32]} 63. Kc1 {[%clk 0:00:02.4]} 63... Kc3 {[%clk 0:01:32.4]} 64. Kb1
{[%clk 0:00:02]} 64... Kb3 {[%clk 0:01:30.4]} 65. Kc1 {[%clk 0:00:01.3]} 65...
a2 {[%clk 0:01:30.7]} 0-1

[Event "*** Titled Tuesday Blitz"]
[Site "Chess.com"]
[Date "2020.03.03"]
[Round "5"]
[White "Astaneh"]
[Black "Chessalary"]
[Result "1-0"]
[WhiteElo "2567"]
[BlackElo "2228"]
[TimeControl "180+1"]
[EndTime "9:51:50 PST"]
[Termination "Astaneh won on time"]

1. e4 {[%clk 0:03:00.9]} 1... c5 {[%clk 0:02:58.3]} 2. Nc3 {[%clk 0:03:00.8]}
2... d6 {[%clk 0:02:57]} 3. f4 {[%clk 0:03:01.3]} 3... g6 {[%clk 0:02:57.1]} 4.
Bc4 {[%clk 0:03:01.9]} 4... Bg7 {[%clk 0:02:58]} 5. Nf3 {[%clk 0:03:02.6]} 5...
Nc6 {[%clk 0:02:57.6]} 6. O-O {[%clk 0:03:03.1]} 6... e6 {[%clk 0:02:56.9]} 7.
d3 {[%clk 0:03:02.3]} 7... Nge7 {[%clk 0:02:57.1]} 8. Qe1 {[%clk 0:03:01.7]}
8... O-O {[%clk 0:02:57.6]} 9. f5 {[%clk 0:03:00.5]} 9... gxf5 {[%clk
0:02:58.5]} 10. Qh4 {[%clk 0:02:59.5]} 10... Ng6 {[%clk 0:02:58.9]} 11. Qh5
{[%clk 0:02:59.9]} 11... fxe4 {[%clk 0:02:49.9]} 12. Bg5 {[%clk 0:02:47.8]}
12... f6 {[%clk 0:02:42.9]} 13. Nxe4 {[%clk 0:02:45.5]} 13... d5 {[%clk
0:02:36.9]} 14. Bb3 {[%clk 0:02:45.4]} 14... dxe4 {[%clk 0:02:34.8]} 15. dxe4
{[%clk 0:02:45.7]} 15... Nd4 {[%clk 0:01:55.3]} 16. Rad1 {[%clk 0:02:44.9]}
16... fxg5 {[%clk 0:01:46.1]} 17. Nxg5 {[%clk 0:02:43.5]} 17... h6 {[%clk
0:01:46.6]} 18. Rxf8+ {[%clk 0:02:38.8]} 18... Qxf8 {[%clk 0:01:36.6]} 19. Rf1
{[%clk 0:02:38.8]} 19... Ne2+ {[%clk 0:01:35.8]} 20. Qxe2 {[%clk 0:02:37.7]}
20... Qe7 {[%clk 0:01:32.2]} 21. Nf7 {[%clk 0:02:25.8]} 21... Bd7 {[%clk
0:01:20.6]} 22. Qg4 {[%clk 0:02:21.1]} 22... Bd4+ {[%clk 0:01:17.2]} 23. Kh1
{[%clk 0:02:20.6]} 23... Qxf7 {[%clk 0:01:18.1]} 24. Rxf7 {[%clk 0:02:20]} 24...
Kxf7 {[%clk 0:01:18.6]} 25. c3 {[%clk 0:02:11.7]} 25... Be5 {[%clk 0:01:09.9]}
26. Qf5+ {[%clk 0:02:09]} 26... Kg7 {[%clk 0:01:08.7]} 27. Qh5 {[%clk
0:02:03.1]} 27... Rf8 {[%clk 0:01:05]} 28. g3 {[%clk 0:02:01.1]} 28... Bc6
{[%clk 0:01:00.9]} 29. Bc2 {[%clk 0:01:52.6]} 29... Rf2 {[%clk 0:01:00.3]} 30.
Qd1 {[%clk 0:01:52.9]} 30... Rf7 {[%clk 0:00:43.8]} 31. Kg1 {[%clk 0:01:52.3]}
31... Rd7 {[%clk 0:00:43.2]} 32. Qe2 {[%clk 0:01:51.3]} 32... Rf7 {[%clk
0:00:38.8]} 33. Bb3 {[%clk 0:01:49]} 33... Rf6 {[%clk 0:00:36]} 34. Qe3 {[%clk
0:01:45.7]} 34... b6 {[%clk 0:00:32.6]} 35. Bc2 {[%clk 0:01:39.2]} 35... Ne7
{[%clk 0:00:32.7]} 36. Qe2 {[%clk 0:01:37.3]} 36... Nc8 {[%clk 0:00:27.6]} 37.
Qh5 {[%clk 0:01:34.1]} 37... Bc7 {[%clk 0:00:23.1]} 38. e5 {[%clk 0:01:34.3]}
38... Rf7 {[%clk 0:00:16]} 39. Qg6+ {[%clk 0:01:33.5]} 39... Kf8 {[%clk
0:00:16.5]} 40. Qxe6 {[%clk 0:01:32]} 40... Ne7 {[%clk 0:00:15.2]} 41. Bb3
{[%clk 0:01:25.2]} 41... Rf3 {[%clk 0:00:11.3]} 42. Qxh6+ {[%clk 0:01:21.3]}
42... Ke8 {[%clk 0:00:11.1]} 43. Ba4 {[%clk 0:01:09.6]} 43... Bxa4 {[%clk
0:00:07.9]} 44. Qh5+ {[%clk 0:01:10.1]} 44... Rf7 {[%clk 0:00:06]} 45. e6 {[%clk
0:01:10.6]} 1-0

[Event "*** Titled Tuesday Blitz"]
[Site "Chess.com"]
[Date "2020.03.03"]
[Round "5"]
[White "Sunnika"]
[Black "Timurist"]
[Result "1-0"]
[WhiteElo "2405"]
[BlackElo "2229"]
[TimeControl "180+1"]
[EndTime "9:51:54 PST"]
[Termination "Sunnika won by resignation"]

1. d4 {[%clk 0:03:00.9]} 1... Nf6 {[%clk 0:02:58.6]} 2. c4 {[%clk 0:03:01.1]}
2... c5 {[%clk 0:02:57.2]} 3. d5 {[%clk 0:03:00.8]} 3... b5 {[%clk 0:02:56.5]}
4. Qc2 {[%clk 0:02:58.7]} 4... g6 {[%clk 0:02:54.8]} 5. e4 {[%clk 0:02:55.8]}
5... d6 {[%clk 0:02:55.2]} 6. cxb5 {[%clk 0:02:55.7]} 6... a6 {[%clk 0:02:55.4]}
7. Nc3 {[%clk 0:02:54.2]} 7... Bg7 {[%clk 0:02:54.7]} 8. Nf3 {[%clk 0:02:53.2]}
8... O-O {[%clk 0:02:55.1]} 9. a4 {[%clk 0:02:51.8]} 9... axb5 {[%clk
0:02:35.4]} 10. Bxb5 {[%clk 0:02:49.4]} 10... Ba6 {[%clk 0:02:36.3]} 11. Rb1
{[%clk 0:02:41.3]} 11... Bxb5 {[%clk 0:02:32.4]} 12. axb5 {[%clk 0:02:42.2]}
12... Nfd7 {[%clk 0:02:27.9]} 13. O-O {[%clk 0:02:39.1]} 13... Nf6 {[%clk
0:02:17.8]} 14. Bg5 {[%clk 0:02:37.1]} 14... Nbd7 {[%clk 0:02:16.8]} 15. Nd2
{[%clk 0:02:36.2]} 15... Nb6 {[%clk 0:02:10.6]} 16. Ra1 {[%clk 0:02:35.8]} 16...
Qd7 {[%clk 0:02:09.5]} 17. Ra6 {[%clk 0:02:34.1]} 17... Rxa6 {[%clk 0:01:38.3]}
18. bxa6 {[%clk 0:02:32.2]} 18... Ra8 {[%clk 0:01:39.2]} 19. Ra1 {[%clk
0:02:31.2]} 19... Ne8 {[%clk 0:01:39.6]} 20. Qd3 {[%clk 0:02:14.3]} 20... Nc7
{[%clk 0:01:36.6]} 21. Nc4 {[%clk 0:02:13.4]} 21... Nxc4 {[%clk 0:00:56.8]} 22.
Qxc4 {[%clk 0:02:11.5]} 22... Ra7 {[%clk 0:00:57.7]} 23. Ra5 {[%clk 0:01:38.2]}
23... Qc8 {[%clk 0:00:41.2]} 24. Bxe7 {[%clk 0:01:33.9]} 24... Rxa6 {[%clk
0:00:20.3]} 25. Rxa6 {[%clk 0:01:32.1]} 25... Nxa6 {[%clk 0:00:21.2]} 26. Bxd6
{[%clk 0:01:30.8]} 26... Bd4 {[%clk 0:00:19]} 27. h3 {[%clk 0:01:25.1]} 27... f5
{[%clk 0:00:11.8]} 28. e5 {[%clk 0:01:21.8]} 28... Qb7 {[%clk 0:00:04.4]} 29.
Na4 {[%clk 0:00:53.2]} 29... Nb4 {[%clk 0:00:03.4]} 30. e6 {[%clk 0:00:46.7]}
30... Nxd5 {[%clk 0:00:02.9]} 31. e7 {[%clk 0:00:43.7]} 31... Kf7 {[%clk
0:00:02.1]} 32. Nxc5 {[%clk 0:00:41.5]} 32... Bxc5 {[%clk 0:00:03]} 33. Bxc5
{[%clk 0:00:37.7]} 33... Ke8 {[%clk 0:00:02.4]} 34. Qd4 {[%clk 0:00:33]} 34...
Nxe7 {[%clk 0:00:02.2]} 35. Qh8+ {[%clk 0:00:29.6]} 35... Kd7 {[%clk 0:00:02.2]}
36. Qxh7 {[%clk 0:00:29.3]} 36... Ke6 {[%clk 0:00:03.1]} 37. Qxe7+ {[%clk
0:00:29.1]} 37... Qxe7 {[%clk 0:00:04]} 38. Bxe7 {[%clk 0:00:28.7]} 38... Kxe7
{[%clk 0:00:04.9]} 1-0

[Event "*** Titled Tuesday Blitz"]
[Site "Chess.com"]
[Date "2020.03.03"]
[Round "5"]
[White "Parhamov"]
[Black "Keranke"]
[Result "1-0"]
[WhiteElo "3059"]
[BlackElo "2798"]
[TimeControl "180+1"]
[EndTime "9:51:57 PST"]
[Termination "Parhamov won by resignation"]

1. e4 {[%clk 0:03:00.9]} 1... g6 {[%clk 0:02:59.3]} 2. d4 {[%clk 0:03:00.3]}
2... Bg7 {[%clk 0:02:59.9]} 3. Nc3 {[%clk 0:02:59.5]} 3... d6 {[%clk 0:03:00.5]}
4. h3 {[%clk 0:02:57.4]} 4... a6 {[%clk 0:03:00.6]} 5. a4 {[%clk 0:02:56.9]}
5... b6 {[%clk 0:03:00.1]} 6. g4 {[%clk 0:02:56.7]} 6... Bb7 {[%clk 0:03:00]} 7.
Bg2 {[%clk 0:02:57.1]} 7... e6 {[%clk 0:02:58.6]} 8. Nge2 {[%clk 0:02:57.1]}
8... Ne7 {[%clk 0:02:57]} 9. Be3 {[%clk 0:02:57.1]} 9... Nd7 {[%clk 0:02:56.2]}
10. Qd2 {[%clk 0:02:57]} 10... c5 {[%clk 0:02:56.8]} 11. Rd1 {[%clk 0:02:55.3]}
11... cxd4 {[%clk 0:02:53.9]} 12. Nxd4 {[%clk 0:02:54.7]} 12... Ne5 {[%clk
0:02:44.9]} 13. b3 {[%clk 0:02:54.2]} 13... Rc8 {[%clk 0:02:44.8]} 14. Nde2
{[%clk 0:02:49.8]} 14... d5 {[%clk 0:02:40.8]} 15. f4 {[%clk 0:02:44.2]} 15...
Nd7 {[%clk 0:02:34.7]} 16. exd5 {[%clk 0:02:42.6]} 16... Nxd5 {[%clk 0:02:31.4]}
17. Nxd5 {[%clk 0:02:41.5]} 17... Bxd5 {[%clk 0:02:32.3]} 18. Bxd5 {[%clk
0:02:39.8]} 18... exd5 {[%clk 0:02:33.2]} 19. Qxd5 {[%clk 0:02:27.5]} 19... Qe7
{[%clk 0:02:25.2]} 20. Rd3 {[%clk 0:02:06]} 20... Nf6 {[%clk 0:02:14.8]} 21. Qe5
{[%clk 0:02:03.3]} 21... Qxe5 {[%clk 0:02:08.4]} 22. fxe5 {[%clk 0:02:03]} 22...
Nd7 {[%clk 0:02:09.3]} 23. Bd4 {[%clk 0:01:57.6]} 23... Rxc2 {[%clk 0:01:50.5]}
24. e6 {[%clk 0:01:57.7]} 24... Ne5 {[%clk 0:01:44.2]} 25. Re3 {[%clk 0:01:36]}
25... f6 {[%clk 0:01:41.1]} 26. g5 {[%clk 0:01:36.3]} 26... Nc6 {[%clk
0:01:23.1]} 27. Bxf6 {[%clk 0:01:25.5]} 27... Rg8 {[%clk 0:01:19]} 28. O-O
{[%clk 0:01:23.4]} 28... Bf8 {[%clk 0:01:18.8]} 29. e7 {[%clk 0:01:23.5]} 29...
Bxe7 {[%clk 0:01:15.3]} 30. Nd4 {[%clk 0:01:23]} 30... Nxd4 {[%clk 0:00:49.1]}
31. Rxe7+ {[%clk 0:01:23.2]} 31... Kf8 {[%clk 0:00:48.6]} 32. Rb7 {[%clk
0:00:29.7]} 32... Ne2+ {[%clk 0:00:26.2]} 33. Kg2 {[%clk 0:00:29.8]} 33... Nf4+
{[%clk 0:00:20.6]} 34. Kf3 {[%clk 0:00:22.5]} 34... Nd5 {[%clk 0:00:14.6]} 35.
Ke4 {[%clk 0:00:22.7]} 35... Nxf6+ {[%clk 0:00:13]} 36. Rxf6+ {[%clk 0:00:22.5]}
1-0

[Event "*** Titled Tuesday Blitz"]
[Site "Chess.com"]
[Date "2020.03.03"]
[Round "5"]
[White "shanemelaughcm"]
[Black "MixMasterChess"]
[Result "1-0"]
[WhiteElo "2254"]
[BlackElo "2088"]
[TimeControl "180+1"]
[EndTime "9:51:59 PST"]
[Termination "shanemelaughcm won on time"]

1. e4 {[%clk 0:03:00.7]} 1... e6 {[%clk 0:02:59.6]} 2. d4 {[%clk 0:03:00.1]}
2... d5 {[%clk 0:03:00.2]} 3. Nd2 {[%clk 0:03:00.8]} 3... c5 {[%clk 0:02:59.7]}
4. dxc5 {[%clk 0:03:01.3]} 4... Bxc5 {[%clk 0:02:57.8]} 5. exd5 {[%clk
0:03:01.6]} 5... Qxd5 {[%clk 0:02:56.8]} 6. Ngf3 {[%clk 0:02:59.9]} 6... Nf6
{[%clk 0:02:55.6]} 7. Be2 {[%clk 0:02:58.9]} 7... O-O {[%clk 0:02:53.4]} 8. O-O
{[%clk 0:02:58.6]} 8... Bd7 {[%clk 0:02:34.1]} 9. c3 {[%clk 0:02:58.6]} 9... Bc6
{[%clk 0:02:28.6]} 10. Qc2 {[%clk 0:02:53]} 10... Bb6 {[%clk 0:02:25.1]} 11. Rd1
{[%clk 0:02:52.6]} 11... Nbd7 {[%clk 0:02:11.1]} 12. Nf1 {[%clk 0:02:39.5]}
12... Qf5 {[%clk 0:01:49.5]} 13. Bd3 {[%clk 0:02:32.7]} 13... Be4 {[%clk
0:01:39.9]} 14. Ng3 {[%clk 0:02:32.9]} 14... Bxd3 {[%clk 0:01:39.6]} 15. Rxd3
{[%clk 0:02:27.4]} 15... Qg6 {[%clk 0:01:32.5]} 16. Qe2 {[%clk 0:02:10.9]} 16...
Ng4 {[%clk 0:01:21.4]} 17. h3 {[%clk 0:02:06.4]} 17... Nxf2 {[%clk 0:01:12.3]}
18. Rxd7 {[%clk 0:01:52.2]} 18... Qxg3 {[%clk 0:01:11.9]} 19. Kf1 {[%clk
0:01:33.9]} 19... Rad8 {[%clk 0:00:48.5]} 20. Rxd8 {[%clk 0:01:31.4]} 20... Rxd8
{[%clk 0:00:47.4]} 21. Be3 {[%clk 0:01:31.4]} 21... Bxe3 {[%clk 0:00:15.3]} 22.
Qxe3 {[%clk 0:01:32.3]} 22... Nh1 {[%clk 0:00:15]} 23. Qg1 {[%clk 0:01:18.4]}
23... Qg6 {[%clk 0:00:10.6]} 24. Qxh1 {[%clk 0:01:17.3]} 24... Qd3+ {[%clk
0:00:10.5]} 25. Kg1 {[%clk 0:01:17.9]} 25... Qc2 {[%clk 0:00:10.4]} 26. Kh2
{[%clk 0:01:14.7]} 26... Qxb2 {[%clk 0:00:10.5]} 27. Qc1 {[%clk 0:01:15.2]}
27... Qf2 {[%clk 0:00:09.3]} 28. Rb1 {[%clk 0:01:12.6]} 28... b6 {[%clk
0:00:08.5]} 29. a4 {[%clk 0:01:11.6]} 29... Rc8 {[%clk 0:00:07.9]} 30. Qg5
{[%clk 0:01:05.7]} 30... h6 {[%clk 0:00:07.3]} 31. Qe5 {[%clk 0:01:02.9]} 31...
Qc2 {[%clk 0:00:05.6]} 32. Rb5 {[%clk 0:00:30]} 32... Rxc3 {[%clk 0:00:04.9]}
33. Qb8+ {[%clk 0:00:29.2]} 33... Kh7 {[%clk 0:00:04.2]} 34. Qf4 {[%clk
0:00:26.4]} 34... Rc4 {[%clk 0:00:01.8]} 35. Qg3 {[%clk 0:00:24.9]} 1-0

[Event "*** Titled Tuesday Blitz"]
[Site "Chess.com"]
[Date "2020.03.03"]
[Round "5"]
[White "124chess"]
[Black "BeanScreen"]
[Result "1-0"]
[WhiteElo "2476"]
[BlackElo "2635"]
[TimeControl "180+1"]
[EndTime "9:52:01 PST"]
[Termination "124chess won by checkmate"]

1. c4 {[%clk 0:03:00.2]} 1... e5 {[%clk 0:02:46.1]} 2. Nc3 {[%clk 0:02:59.8]}
2... Nf6 {[%clk 0:02:46.7]} 3. g3 {[%clk 0:02:59.7]} 3... Bc5 {[%clk 0:02:47]}
4. Bg2 {[%clk 0:02:59.8]} 4... O-O {[%clk 0:02:47.7]} 5. e3 {[%clk 0:03:00.1]}
5... Re8 {[%clk 0:02:48]} 6. Nge2 {[%clk 0:03:00.5]} 6... Nc6 {[%clk 0:02:48.7]}
7. O-O {[%clk 0:03:00.6]} 7... d6 {[%clk 0:02:49.4]} 8. a3 {[%clk 0:03:00.5]}
8... a6 {[%clk 0:02:49.1]} 9. b4 {[%clk 0:03:00.1]} 9... Ba7 {[%clk 0:02:49.4]}
10. Bb2 {[%clk 0:03:00]} 10... Bg4 {[%clk 0:02:49.5]} 11. h3 {[%clk 0:02:59.4]}
11... Bh5 {[%clk 0:02:50.1]} 12. g4 {[%clk 0:02:58.3]} 12... Bxg4 {[%clk
0:02:49.9]} 13. hxg4 {[%clk 0:02:57.8]} 13... Nxg4 {[%clk 0:02:50.8]} 14. f3
{[%clk 0:01:40.2]} 14... Nxe3 {[%clk 0:02:50.6]} 15. dxe3 {[%clk 0:01:40.7]}
15... Bxe3+ {[%clk 0:02:51.5]} 16. Rf2 {[%clk 0:01:40.9]} 16... Qh4 {[%clk
0:02:51.3]} 17. Qe1 {[%clk 0:01:34.6]} 17... Re6 {[%clk 0:02:51.1]} 18. Nd5
{[%clk 0:01:30.1]} 18... Ba7 {[%clk 0:01:46.4]} 19. Rc1 {[%clk 0:01:29.2]} 19...
Rg6 {[%clk 0:01:16]} 20. c5 {[%clk 0:01:24.5]} 20... Rd8 {[%clk 0:01:03]} 21.
Rf1 {[%clk 0:01:18]} 21... dxc5 {[%clk 0:01:02.3]} 22. Qxh4 {[%clk 0:01:16.7]}
22... cxb4+ {[%clk 0:00:54.1]} 23. Rf2 {[%clk 0:00:55.4]} 23... Rxd5 {[%clk
0:00:52.5]} 24. axb4 {[%clk 0:00:52.8]} 24... Rd2 {[%clk 0:00:44.2]} 25. Rxc6
{[%clk 0:00:46.9]} 25... Rxc6 {[%clk 0:00:41.8]} 26. Bxe5 {[%clk 0:00:37.8]}
26... f6 {[%clk 0:00:29.4]} 27. Bd4 {[%clk 0:00:33.6]} 27... Rc4 {[%clk
0:00:21.6]} 28. Qh5 {[%clk 0:00:26.2]} 28... Rxe2 {[%clk 0:00:06.1]} 29. Qd5+
{[%clk 0:00:21.5]} 29... Kf8 {[%clk 0:00:05.9]} 30. Qxc4 {[%clk 0:00:19.3]}
30... Re1+ {[%clk 0:00:06.2]} 31. Rf1 {[%clk 0:00:18.9]} 31... b5 {[%clk
0:00:03.9]} 32. Bc5+ {[%clk 0:00:17.7]} 32... Bxc5+ {[%clk 0:00:04.4]} 33. Qxc5+
{[%clk 0:00:18]} 33... Re7 {[%clk 0:00:05.3]} 34. Re1 {[%clk 0:00:18]} 34... Kg8
{[%clk 0:00:05.4]} 35. Rxe7 {[%clk 0:00:17.8]} 35... h6 {[%clk 0:00:06.3]} 36.
Qxc7 {[%clk 0:00:18.4]} 36... Kh7 {[%clk 0:00:07.2]} 37. Rxg7+ {[%clk 0:00:19]}
37... Kh8 {[%clk 0:00:08.1]} 38. Qf7 {[%clk 0:00:19.2]} 38... h5 {[%clk
0:00:08.8]} 39. Rg8# {[%clk 0:00:19.2]} 1-0